bitfinex-derivatives/quotes_SOLF0:USTF0_20260227
["timestamp","ask_amount","ask_price","bid_price","bid_amount"]
[1772218116266,9.35188057,81.67,81.591,4.20622912]
[1772218116462,9.35188057,81.67,81.608,4.20622912]
[1772218116662,11.023,81.653,81.608,4.20622912]
[1772218117968,11.023,81.653,81.61,4.20302934]
[1772218118774,11.023,81.653,81.613,11.0284]
[1772218120473,0.07725335,81.641,81.613,11.0284]
[1772218121473,0.07725335,81.641,81.598,4.1923948]
[1772218122072,9.35188057,81.67,81.598,4.1923948]
[1772218122467,11.0232,81.652,81.606,11.0293]
[1772218123875,11.0222,81.659,81.598,4.1923948]
[1772218124370,11.0222,81.659,81.613,11.0284]
[1772218124581,11.0229,81.654,81.598,4.1923948]
[1772218124873,5.5126159,81.669,81.606,11.0293]
[1772218125073,11.31468169,81.669,81.606,11.0293]
[1772218125577,16.82738849,81.669,81.6,4.18852307]
[1772218125769,0.07785425,81.646,81.6,4.18852307]
[1772218126172,0.07785425,81.646,81.602,11.0298]
[1772218126773,11.0244,81.643,81.602,11.0298]
[1772218127074,0.07785425,81.646,81.583,4.18852307]
[1772218127775,5.51292966,81.649,81.583,4.18852307]
[1772218128174,9.35188057,81.65,81.583,4.18852307]
[1772218128372,5.51294713,81.649,81.583,4.18852307]
[1772218128668,9.35188057,81.65,81.583,4.18852307]
[1772218128874,11.0268,81.625,81.583,4.18852307]
[1772218130276,0.07743356,81.612,81.583,4.18852307]
[1772218131072,0.07743356,81.612,81.584,11.0323]
[1772218131372,9.35188057,81.65,81.561,15.12133046]
[1772218131373,9.35188057,81.65,81.585,4.18201871]
[1772218132675,11.31468169,81.663,81.598,4.18317204]
[1772218132869,11.31468169,81.676,81.598,4.18317204]
[1772218133073,11.31468169,81.68,81.598,4.18317204]
[1772218133275,11.31468169,81.68,81.58,31.41738057]
[1772218133276,11.021,81.668,81.626,4.20547062]
[1772218135182,11.022,81.661,81.626,4.20547062]
[1772218135383,3.49184484,81.66,81.611,4.2149871]
[1772218135584,3.49184484,81.65,81.611,4.2149871]
[1772218136287,3.49184484,81.64,81.611,4.2149871]
[1772218136585,11.0235,81.649,81.611,4.2149871]
[1772218137083,3.49184484,81.65,81.611,4.2149871]
[1772218137885,14.51534484,81.65,81.611,4.2149871]
[1772218138683,3.49184484,81.64,81.595,4.20502728]
[1772218139280,3.49184484,81.65,81.595,4.20502728]
[1772218139476,3.49184484,81.65,81.603,4.17262088]
[1772218140983,3.49184484,81.65,81.606,4.17262088]
[1772218141278,3.49184484,81.64,81.606,4.17262088]
[1772218141684,3.49184484,81.65,81.606,4.17262088]
[1772218141881,3.49184484,81.64,81.606,4.17262088]
[1772218142078,3.49184484,81.64,81.547,36.69]
[1772218142079,3.49184484,81.64,81.581,4.17000353]
[1772218142779,3.49184484,81.64,81.598,4.17000353]
[1772218143080,3.49184484,81.63,81.568,4.17000353]
[1772218143288,3.49184484,81.62,81.568,4.17000353]
[1772218143984,3.49184484,81.63,81.581,4.16976334]
[1772218144175,3.49184484,81.64,81.581,4.16976334]
[1772218144680,11.0251,81.637,81.59,4.16976334]
[1772218145283,3.49184484,81.64,81.591,4.16976334]
[1772218145683,11.0243,81.644,81.606,4.17360441]
[1772218146087,3.49184484,81.66,81.606,4.17360441]
[1772218146284,11.0225,81.657,81.615,4.17360441]
[1772218146893,11.0225,81.657,81.577,22.68199569]
[1772218146894,3.49184484,81.65,81.601,4.17360441]
[1772218148284,11.0237,81.648,81.601,4.17360441]
[1772218148989,3.49184484,81.64,81.601,4.17360441]
[1772218149187,3.49184484,81.64,81.606,11.0292]
[1772218149389,3.49184484,81.64,81.601,4.17360441]
[1772218150892,3.49184484,81.64,81.611,11.0285]
[1772218151091,3.49184484,81.65,81.601,4.17360441]
[1772218151495,3.49184484,81.64,81.601,4.17360441]
[1772218152793,3.49184484,81.62,81.576,4.14963716]
[1772218153898,11.0253,81.636,81.589,4.15349683]
[1772218153899,3.49184484,81.63,81.589,4.15349683]
[1772218154287,11.0245,81.642,81.595,11.0308]
[1772218154487,3.49184484,81.63,81.601,0.07724952]
[1772218154693,3.49184484,81.64,81.601,0.07724952]
[1772218155095,3.49184484,81.64,81.589,4.15349683]
[1772218155298,3.49184484,81.65,81.61,4.15250949]
[1772218156995,3.49184484,81.65,81.612,11.0285]
[1772218157410,3.49263696,81.65,81.612,11.0285]
[1772218158698,3.49263696,81.65,81.61,4.15250949]
[1772218159899,11.0235,81.649,81.61,4.15250949]
[1772218162801,11.0243,81.644,81.61,4.15250949]
[1772218165001,11.31468169,81.675,81.61,4.15250949]
[1772218165203,3.49263696,81.66,81.613,4.15164544]
[1772218165409,3.49263696,81.65,81.613,4.15164544]
[1772218167511,11.0232,81.652,81.613,4.15164544]
[1772218167702,3.49263696,81.65,81.613,4.15164544]
[1772218167903,3.49263696,81.64,81.599,4.16418753]
[1772218170107,11.0237,81.648,81.599,4.16418753]
[1772218171910,3.49263696,81.65,81.602,4.1695699]
[1772218172107,3.49263696,81.66,81.602,4.1695699]
[1772218172810,3.49263696,81.66,81.617,4.1695699]
[1772218175013,3.49263696,81.66,81.622,4.1601399]
[1772218175907,3.49263696,81.66,81.622,15.1871399]
[1772218176610,3.49263696,81.66,81.622,4.1601399]
[1772218176812,3.49263696,81.66,81.594,15.12133046]
[1772218176813,3.49263696,81.64,81.595,4.16110507]
[1772218177914,3.49263696,81.64,81.6,4.16120702]
[1772218180015,3.49263696,81.64,81.612,0.07732656]
[1772218181819,3.49263696,81.63,81.588,4.16473665]
[1772218182811,3.49263696,81.62,81.588,4.16473665]
[1772218183518,3.49263696,81.62,81.584,11.0323]
[1772218187222,3.49263696,81.62,81.59,11.0315]
[1772218188722,3.49263696,81.63,81.59,11.0315]
[1772218189720,3.49263696,81.63,81.593,11.031]
[1772218189920,11.0244,81.643,81.594,4.2375332]
[1772218190425,11.0244,81.643,81.595,11.0308]
[1772218190627,3.49263696,81.64,81.596,4.2375332]
[1772218192025,11.0249,81.639,81.596,4.2375332]
[1772218192428,11.0249,81.639,81.598,4.23690275]
[1772218194428,3.49263696,81.64,81.599,11.0308]
[1772218195521,11.31468169,81.652,81.575,4.24596521]
[1772218195727,3.49263696,81.61,81.575,4.24596521]
[1772218195928,3.49263696,81.6,81.575,4.24596521]
[1772218196727,3.49263696,81.61,81.575,4.24596521]
[1772218196929,0.07771723,81.596,81.575,4.24596521]
[1772218200931,3.49263696,81.59,81.539,4.19688908]
[1772218201136,3.49263696,81.57,81.539,4.19688908]
[1772218202537,3.49263696,81.58,81.539,4.19688908]
[1772218202736,22.059,81.614,81.51,518.02866513]
[1772218202737,3.49263696,81.6,81.541,3.90795218]
[1772218202936,6.68606388,81.6,81.541,3.90795218]
[1772218203139,3.19342692,81.599,81.541,3.90795218]
[1772218203734,14.22482692,81.599,81.55,3.90795218]
[1772218204139,3.11653631,81.598,81.55,3.90795218]
[1772218204740,11.0318,81.596,81.55,3.90795218]
[1772218205231,11.0325,81.591,81.55,3.90795218]
[1772218205429,6.55989352,81.58,81.537,3.90795218]
[1772218206042,6.55989352,81.57,81.525,3.90795218]
[1772218206640,3.06725656,81.559,81.512,3.90795218]
[1772218207234,3.06725656,81.559,81.515,3.90795218]
[1772218207837,11.0369,81.558,81.515,3.90795218]
[1772218209040,11.0369,81.558,81.51,521.52130209]
[1772218209041,11.0369,81.558,81.517,3.90795218]
[1772218209240,11.0379,81.552,81.517,3.90795218]
[1772218209642,3.49263696,81.55,81.51,518.02866513]
[1772218209941,11.0383,81.548,81.51,518.02866513]
[1772218210142,11.0383,81.548,81.511,3.75848839]
[1772218210343,3.09944859,81.568,81.52,3.75848839]
[1772218210638,3.09944859,81.568,81.521,3.75848839]
[1772218210837,3.49263696,81.58,81.532,3.75848839]
[1772218211546,3.15490697,81.579,81.532,3.75848839]
[1772218212045,11.0343,81.578,81.532,3.75848839]
[1772218212244,3.15490697,81.577,81.532,3.75848839]
[1772218212646,3.49263696,81.57,81.532,3.75848839]
[1772218213345,3.49263696,81.56,81.523,11.0416]
[1772218214545,3.15490697,81.569,81.53,11.0407]
[1772218215540,3.15490697,81.569,81.521,3.75848839]
[1772218215738,3.1459031,81.557,81.51,518.02866513]
[1772218215947,3.49263696,81.55,81.511,3.75848839]
[1772218216146,3.49263696,81.53,81.51,518.02866513]
[1772218216343,3.49263696,81.53,81.485,3.75848839]
[1772218216547,3.49263696,81.52,81.485,3.75848839]
[1772218216948,3.49263696,81.51,81.471,3.75848839]
[1772218217450,3.50448816,81.51,81.471,3.75848839]
[1772218217648,3.1459031,81.52,81.471,3.75848839]
[1772218217850,3.20350607,81.519,81.471,3.75848839]
[1772218218655,3.50448816,81.53,81.473,3.75848839]
[1772218218846,3.20350607,81.529,81.473,3.75848839]
[1772218219246,11.0424,81.518,81.475,3.75848839]
[1772218219948,11.0414,81.525,81.477,3.75848839]
[1772218220149,9.38506075,81.54,81.451,3.75848839]
[1772218220150,3.24021106,81.524,81.451,3.75848839]
[1772218220352,3.24021106,81.524,81.462,3.75848839]
[1772218220655,11.0449,81.5,81.462,3.75848839]
[1772218220948,3.24021106,81.508,81.451,3.75848839]
[1772218221851,22.0789,81.54,81.45,530.56944342]
[1772218221852,11.0466,81.487,81.45,530.56944342]
[1772218222151,3.21869232,81.495,81.45,530.56944342]
[1772218223448,3.2075944,81.491,81.437,14.81168839]
[1772218223854,3.2075944,81.508,81.441,3.75848839]
[1772218224250,3.2075944,81.499,81.441,3.75848839]
[1772218225055,3.2075944,81.499,81.445,3.75848839]
[1772218225655,3.20363921,81.513,81.445,3.75848839]
[1772218226152,3.20363921,81.525,81.454,3.75848839]
[1772218227651,3.20363921,81.525,81.475,3.75848839]
[1772218228149,9.38506075,81.55,81.475,3.75848839]
[1772218228150,3.24885424,81.523,81.475,3.75848839]
[1772218228951,9.38506075,81.55,81.475,3.75848839]
[1772218229257,3.24885424,81.549,81.475,3.75848839]
[1772218229753,3.24304195,81.548,81.471,3.75848839]
[1772218230160,3.24304195,81.548,81.489,3.75848839]
[1772218230758,3.24304195,81.539,81.489,3.75848839]
[1772218231262,3.24304195,81.539,81.479,3.75848839]
[1772218231957,3.26564891,81.533,81.481,11.0473]
[1772218232156,3.26564891,81.549,81.482,3.75848839]
[1772218232560,3.26564891,81.538,81.482,3.75848839]
[1772218233260,3.26564891,81.52,81.455,3.75848839]
[1772218234463,11.0437,81.508,81.459,14.80878839]
[1772218235658,11.0437,81.508,81.46,3.75848839]
[1772218236254,11.0446,81.502,81.46,3.75848839]
[1772218236859,14.32741681,81.502,81.46,3.75848839]
[1772218237158,14.32741681,81.502,81.462,11.0499]
[1772218237359,3.30263202,81.533,81.463,3.75848839]
[1772218238363,11.0445,81.502,81.463,3.75848839]
[1772218238959,3.30263202,81.507,81.445,3.75848839]
[1772218239157,3.29789717,81.521,81.445,3.75848839]
[1772218240762,3.29789717,81.521,81.455,3.96424943]
[1772218241464,3.30034,81.514,81.455,3.96424943]
[1772218242764,3.30034,81.511,81.456,15.01494943]
[1772218243070,3.30034,81.511,81.457,3.96424943]
[1772218243864,3.30034,81.511,81.46,11.0501]
[1772218244458,3.30034,81.511,81.464,15.01374943]
[1772218246462,3.30236065,81.499,81.451,3.96424943]
[1772218247868,3.30236065,81.499,81.459,11.0503]
[1772218248371,3.30382852,81.523,81.471,15.01284943]
[1772218249167,3.30382852,81.518,81.458,3.96424943]
[1772218250064,3.30111257,81.502,81.449,11.0517]
[1772218250265,3.30111257,81.502,81.45,3.96424943]
[1772218250771,3.30111257,81.489,81.436,3.96424943]
[1772218251668,3.30111257,81.489,81.438,15.01734943]
[1772218252470,11.0465,81.488,81.442,11.0526]
[1772218252871,3.29677956,81.487,81.442,11.0526]
[1772218253070,3.29677956,81.468,81.426,3.96424943]
[1772218253666,14.32698752,81.46,81.412,3.96424943]
[1772218254370,3.27678752,81.46,81.415,3.96424943]
[1772218254565,3.27678752,81.474,81.415,3.96424943]
[1772218255472,3.27678752,81.474,81.429,11.0543]
[1772218255775,3.27678752,81.474,81.429,15.01854943]
[1772218256873,14.32518752,81.474,81.429,15.01854943]
[1772218258075,3.20448955,81.489,81.432,3.96424943]
[1772218258676,3.20448955,81.487,81.432,3.96424943]
[1772218259278,3.20448955,81.476,81.432,3.96424943]
[1772218260172,3.20448955,81.476,81.408,3.96424943]
[1772218260471,3.19294489,81.465,81.418,3.96424943]
[1772218260877,3.19294489,81.463,81.418,3.96424943]
[1772218261085,3.19294489,81.463,81.381,3.96424943]
[1772218261284,3.50968382,81.45,81.401,3.96424943]
[1772218261476,3.19146015,81.449,81.401,3.96424943]
[1772218262382,3.50968382,81.44,81.401,3.96424943]
[1772218263073,3.50968382,81.45,81.401,3.96424943]
[1772218263278,3.19146015,81.46,81.401,3.96424943]
[1772218264079,11.0509,81.456,81.405,3.96424943]
[1772218264387,3.16260336,81.464,81.405,3.96424943]
[1772218264680,3.16260336,81.479,81.433,3.96424943]
[1772218265277,3.16260336,81.498,81.445,3.96424943]
[1772218265486,8.93508656,81.507,81.445,3.96424943]
[1772218265686,3.03952315,81.512,81.445,3.96424943]
[1772218265889,11.0438,81.507,81.456,3.96424943]
[1772218266275,14.08332315,81.507,81.456,3.96424943]
[1772218267785,11.0438,81.507,81.459,3.96424943]
[1772218267982,3.03358873,81.521,81.459,3.96424943]
[1772218268181,8.98305438,81.542,81.477,3.96424943]
[1772218268387,3.03358873,81.536,81.477,3.96424943]
[1772218268588,3.03358873,81.534,81.477,3.96424943]
[1772218268786,3.03358873,81.533,81.477,3.96424943]
[1772218268986,3.03358873,81.531,81.477,3.96424943]
[1772218269884,3.03358873,81.531,81.477,15.01204943]
[1772218270281,3.03358873,81.531,81.477,3.96424943]
[1772218271389,3.03358873,81.531,81.479,11.0476]
[1772218271888,3.03358873,81.531,81.477,3.96424943]
[1772218272791,3.03358873,81.531,81.478,3.90336024]
[1772218272996,2.99005072,81.547,81.478,3.90336024]
[1772218273183,2.99005072,81.545,81.478,3.90336024]
[1772218273893,2.99005072,81.545,81.486,11.0466]
[1772218274191,2.99005072,81.545,81.487,3.90336024]
[1772218274988,2.99005072,81.545,81.489,14.94956024]
[1772218275489,3.0709692,81.543,81.451,3.90336024]
[1772218275689,3.0709692,81.541,81.451,3.90336024]
[1772218275887,3.0709692,81.539,81.451,3.90336024]
[1772218276186,3.0709692,81.527,81.472,3.90336024]
[1772218276695,3.0709692,81.527,81.45,9.40156899]
[1772218276696,3.0709692,81.527,81.474,3.90336024]
[1772218277992,3.0709692,81.527,81.479,3.90336024]
[1772218279090,3.0709692,81.527,81.482,3.90336024]
[1772218279292,11.0399,81.537,81.482,3.90336024]
[1772218279789,11.0404,81.533,81.484,3.90336024]
[1772218280194,3.0723662,81.532,81.484,3.90336024]
[1772218280886,3.0723662,81.529,81.484,3.90336024]
[1772218281093,3.0723662,81.529,81.469,3.90336024]
[1772218281889,11.0422,81.519,81.471,11.0486]
[1772218282094,14.1180061,81.519,81.471,11.0486]
[1772218282294,14.1180061,81.519,81.471,14.95196024]
[1772218282491,11.0427,81.516,81.472,3.90336024]
[1772218282994,3.0758061,81.518,81.472,3.90336024]
[1772218283896,3.0758061,81.518,81.473,11.0484]
[1772218284295,3.0758061,81.518,81.472,3.90336024]
[1772218284495,11.0426,81.517,81.472,14.95186024]
[1772218284896,3.05088698,81.531,81.473,3.90336024]
[1772218285194,3.05088698,81.545,81.473,3.90336024]
[1772218285791,3.05088698,81.545,81.488,3.90336024]
[1772218286398,3.05062895,81.558,81.507,3.90336024]
[1772218287197,3.05062895,81.547,81.481,3.90336024]
[1772218287597,5.52169602,81.559,81.481,3.90336024]
[1772218287598,3.09750181,81.542,81.49,11.0461]
[1772218288004,3.09750181,81.542,81.49,14.94946024]
[1772218288492,11.0396,81.539,81.496,11.0453]
[1772218288698,3.09750181,81.542,81.496,11.0453]
[1772218288902,3.09750181,81.542,81.496,14.94866024]
[1772218289200,3.09750181,81.542,81.498,11.045]
[1772218289592,3.09750181,81.542,81.498,3.90336024]
[1772218289898,3.09707691,81.558,81.51,14.94676024]
[1772218290201,3.09707691,81.558,81.51,3.90336024]
[1772218290694,3.09707691,81.556,81.481,3.90336024]
[1772218291695,11.0386,81.546,81.503,11.0443]
[1772218291893,3.09702667,81.545,81.499,3.90336024]
[1772218292092,3.09702667,81.545,81.486,3.90336024]
[1772218292698,3.09702667,81.562,81.499,3.90336024]
[1772218294002,11.0375,81.554,81.508,14.94706024]
[1772218294203,11.0375,81.554,81.509,3.90336024]
[1772218295000,18.35055988,81.58,81.505,11.044]
[1772218295001,3.09793459,81.55,81.505,11.044]
[1772218295201,3.09793459,81.55,81.497,11.045]
[1772218295498,11.0377,81.553,81.498,3.90336024]
[1772218295805,3.09077798,81.564,81.511,3.90336024]
[1772218296001,3.09077798,81.561,81.511,3.90336024]
[1772218296302,3.09077798,81.561,81.518,11.0423]
[1772218297503,3.09077798,81.561,81.518,3.90336024]
[1772218297900,3.08132565,81.554,81.509,11.0435]
[1772218298294,3.08132565,81.554,81.504,3.90336024]
[1772218298802,11.0386,81.546,81.504,3.90336024]
[1772218299002,14.11992565,81.546,81.504,3.90336024]
[1772218299605,3.06835694,81.545,81.504,3.90336024]
[1772218301607,11.0389,81.544,81.504,3.90336024]
[1772218302108,3.06835694,81.545,81.504,3.90336024]
[1772218303605,14.10715694,81.545,81.504,3.90336024]
[1772218303906,2.95835644,81.544,81.504,3.90336024]
[1772218304908,11.0392,81.541,81.504,3.90336024]
[1772218305309,3.50194151,81.54,81.504,3.90336024]
[1772218305704,11.0396,81.539,81.504,3.90336024]
[1772218306904,2.9577934,81.529,81.488,3.85832518]
[1772218307699,11.041,81.528,81.489,11.0462]
[1772218307905,2.97405789,81.544,81.491,3.85832518]
[1772218309009,2.97405789,81.544,81.502,3.85832518]
[1772218309715,3.50194151,81.55,81.509,14.90182518]
[1772218310309,8.96847218,81.549,81.509,14.90182518]
[1772218310515,8.96847218,81.548,81.509,3.85832518]
[1772218310813,8.96847218,81.547,81.509,3.85832518]
[1772218311013,8.96847218,81.546,81.509,3.85832518]
[1772218311308,8.96847218,81.545,81.51,3.85832518]
[1772218311515,3.50194151,81.54,81.51,3.85832518]
[1772218311809,3.50194151,81.54,81.497,3.85832518]
[1772218311810,2.96015532,81.539,81.497,3.85832518]
[1772218312014,3.50194151,81.52,81.473,3.85832518]
[1772218312212,8.96847218,81.519,81.473,3.85832518]
[1772218312512,8.96847218,81.518,81.473,3.85832518]
[1772218312811,8.96847218,81.517,81.473,3.85832518]
[1772218313014,8.96847218,81.516,81.473,3.85832518]
[1772218313213,2.96015532,81.529,81.473,3.85832518]
[1772218313514,11.0423,81.519,81.473,14.90672518]
[1772218313716,8.98900947,81.518,81.473,14.90672518]
[1772218314013,8.98900947,81.517,81.477,3.85832518]
[1772218314209,8.98946262,81.535,81.477,3.85832518]
[1772218314407,8.98946262,81.534,81.477,3.85832518]
[1772218314608,8.98946262,81.533,81.477,3.85832518]
[1772218314916,8.98946262,81.532,81.477,3.85832518]
[1772218315116,8.98946262,81.531,81.492,11.0458]
[1772218315303,8.98946262,81.53,81.492,11.0458]
[1772218315508,8.98946262,81.529,81.492,11.0458]
[1772218315809,8.98946262,81.528,81.485,3.85832518]
[1772218316009,8.98946262,81.527,81.485,3.85832518]
[1772218316314,11.0402,81.534,81.488,14.90472518]
[1772218316315,8.98946262,81.526,81.488,14.90472518]
[1772218316615,11.26328708,81.544,81.489,3.85832518]
[1772218316616,2.99704718,81.54,81.489,3.85832518]
[1772218316807,2.99704718,81.538,81.489,3.85832518]
[1772218317008,11.98977503,81.537,81.49,11.0461]
[1772218317215,11.98977503,81.536,81.49,11.0461]
[1772218317414,8.99272785,81.535,81.49,11.0461]
[1772218317609,8.99272785,81.534,81.49,14.90442518]
[1772218317810,8.99272785,81.533,81.493,3.85832518]
[1772218318009,8.99272785,81.532,81.493,3.85832518]
[1772218318209,8.99272785,81.531,81.493,3.85832518]
[1772218318409,8.99272785,81.53,81.493,3.85832518]
[1772218318615,8.99272785,81.529,81.493,3.85832518]
[1772218318813,8.99272785,81.528,81.493,3.85832518]
[1772218319014,8.99272785,81.527,81.494,11.0455]
[1772218319214,8.98911292,81.526,81.493,3.85832518]
[1772218319515,2.99704718,81.536,81.493,3.85832518]
[1772218319711,2.99357737,81.534,81.493,3.85832518]
[1772218319913,8.98909524,81.533,81.493,3.85832518]
[1772218320114,11.0409,81.529,81.493,3.85832518]
[1772218320316,8.98909524,81.528,81.493,3.85832518]
[1772218320613,8.98909524,81.527,81.493,3.85832518]
[1772218320806,8.98909524,81.526,81.493,3.85832518]
[1772218321009,11.0409,81.529,81.493,3.85832518]
[1772218321314,8.9889599,81.528,81.493,3.85832518]
[1772218321614,3.7811085,81.543,81.471,3.85832518]
[1772218322015,14.8211085,81.536,81.486,3.85832518]
[1772218323009,11.0387,81.545,81.492,3.85832518]
[1772218324216,11.0395,81.539,81.498,14.90332518]
[1772218324916,3.7811085,81.533,81.491,11.0459]
[1772218326816,3.7811085,81.533,81.498,11.045]
[1772218327316,3.7811085,81.533,81.491,3.85832518]
[1772218327515,3.7811085,81.533,81.477,3.85832518]
[1772218328813,3.7811085,81.528,81.474,11.0482]
[1772218329416,3.7811085,81.523,81.467,11.0492]
[1772218329612,3.7811085,81.523,81.464,3.85832518]
[1772218330412,3.71863554,81.518,81.464,3.85832518]
[1772218330612,11.26328708,81.531,81.464,3.85832518]
[1772218330811,3.71863554,81.532,81.464,3.85832518]
[1772218331012,3.71863554,81.532,81.45,9.38599626]
[1772218331013,3.71863554,81.532,81.484,11.0469]
[1772218331406,3.71863554,81.532,81.49,11.046]
[1772218331618,3.71863554,81.549,81.484,3.85270364]
[1772218332219,3.71863554,81.564,81.504,3.85270364]
[1772218332617,3.71863554,81.564,81.513,11.0429]
[1772218333015,3.71863554,81.564,81.514,3.85270364]
[1772218333418,8.93449457,81.563,81.514,3.85270364]
[1772218333618,12.65313011,81.562,81.514,3.85270364]
[1772218333818,3.71863554,81.56,81.514,3.85270364]
[1772218334018,3.71863554,81.558,81.514,3.85270364]
[1772218334220,8.93449457,81.557,81.514,3.85270364]
[1772218334417,19.97179457,81.556,81.514,3.85270364]
[1772218334621,11.0373,81.556,81.514,3.85270364]
[1772218335011,8.93449457,81.557,81.514,3.85270364]
[1772218335422,8.93449457,81.565,81.514,3.85270364]
[1772218335717,3.71863554,81.549,81.503,3.85270364]
[1772218337015,3.71863554,81.549,81.506,3.85270364]
[1772218337516,3.50030863,81.54,81.506,3.85270364]
[1772218339226,3.50184913,81.54,81.506,3.85270364]
[1772218339525,3.50184913,81.54,81.508,11.0436]
[1772218339725,8.92994142,81.555,81.506,3.85270364]
[1772218340023,3.50184913,81.55,81.506,3.85270364]
[1772218340223,56.12111237,81.566,81.469,365.22184838]
[1772218340224,3.71863554,81.539,81.49,3.85270364]
[1772218340420,3.50184913,81.54,81.49,3.85270364]
[1772218340818,11.0418,81.522,81.469,365.22184838]
[1772218341021,3.50184913,81.52,81.47,3.85270364]
[1772218341827,3.50184913,81.52,81.479,11.0476]
[1772218342423,3.50184913,81.52,81.485,11.0467]
[1772218345825,3.50184913,81.52,81.475,11.0481]
[1772218346026,3.50184913,81.52,81.475,14.90080364]
[1772218346230,3.50184913,81.51,81.475,14.90080364]
[1772218346427,3.50184913,81.51,81.475,3.85270364]
[1772218347321,3.71863554,81.536,81.475,3.85270364]
[1772218347520,3.50184913,81.53,81.475,3.85270364]
[1772218347926,11.26328708,81.548,81.475,3.85270364]
[1772218347927,3.50184913,81.52,81.475,3.85270364]
[1772218348628,3.50184913,81.51,81.475,3.85270364]
[1772218349022,3.50184913,81.52,81.475,3.85270364]
[1772218349327,3.71863554,81.509,81.469,365.22184838]
[1772218350522,3.71863554,81.509,81.47,11.0488]
[1772218352828,3.50184913,81.52,81.478,3.85270364]
[1772218353818,3.50184913,81.52,81.482,14.89990364]
[1772218354019,3.50184913,81.52,81.483,3.85270364]
[1772218354228,3.71863554,81.523,81.483,3.85270364]
[1772218354419,8.92994142,81.527,81.498,3.85270364]
[1772218354624,8.92994142,81.541,81.5,3.50184913]
[1772218354828,8.92994142,81.547,81.501,3.85270364]
[1772218355127,3.50184913,81.56,81.501,3.85270364]
[1772218355530,3.50184913,81.55,81.501,3.85270364]
[1772218355731,3.71863554,81.549,81.501,3.85270364]
[1772218356231,14.75683554,81.549,81.504,11.0442]
[1772218356632,3.71863554,81.549,81.504,3.85270364]
[1772218356836,3.50184913,81.55,81.504,3.85270364]
[1772218357134,3.50184913,81.56,81.504,3.85270364]
[1772218357332,3.50184913,81.55,81.511,11.0432]
[1772218357833,0.07740859,81.539,81.511,11.0432]
[1772218358430,0.07740859,81.539,81.519,11.0422]
[1772218358625,3.71863554,81.559,81.511,3.85270364]
[1772218359232,3.50184913,81.55,81.514,11.0428]
[1772218359632,3.8045248,81.557,81.514,11.0428]
[1772218360634,3.50184913,81.55,81.514,11.0428]
[1772218360834,3.68537866,81.539,81.498,11.0449]
[1772218361025,3.50184913,81.53,81.482,3.89259372]
[1772218361232,8.92994142,81.548,81.491,3.89259372]
[1772218361429,8.92994142,81.547,81.491,3.89259372]
[1772218361631,3.68537866,81.549,81.491,3.89259372]
[1772218361827,3.50184913,81.54,81.512,11.0431]
[1772218362237,3.50184913,81.54,81.491,3.89259372]
[1772218362731,3.50184913,81.54,81.495,11.0454]
[1772218363133,3.50184913,81.53,81.495,11.0454]
[1772218363526,3.68537866,81.539,81.495,11.0454]
[1772218367034,3.68537866,81.539,81.502,11.0445]
[1772218368736,3.68537866,81.557,81.509,3.89259372]
[1772218370041,3.50184913,81.55,81.509,3.89259372]
[1772218370940,3.50184913,81.55,81.509,14.93599372]
[1772218372744,3.50184913,81.55,81.521,0.07730612]
[1772218374645,3.50184913,81.54,81.521,0.07730612]
[1772218375548,3.50184913,81.54,81.502,11.0444]
[1772218381449,3.68537866,81.548,81.508,11.0437]
[1772218381844,3.68537866,81.548,81.496,3.89259372]
[1772218382355,3.50184913,81.54,81.496,3.89259372]
[1772218382951,3.50184913,81.54,81.502,11.0445]
[1772218384146,3.50184913,81.54,81.507,11.0437]
[1772218384346,3.68537866,81.548,81.507,11.0437]
[1772218386256,3.68537866,81.548,81.512,11.0431]
[1772218386755,3.68537866,81.548,81.502,3.89259372]
[1772218386959,67.38439945,81.566,81.507,3.89259372]
[1772218386960,3.68537866,81.547,81.507,3.89259372]
[1772218387961,3.68537866,81.545,81.507,3.89259372]
[1772218388658,3.50184913,81.54,81.507,3.89259372]
[1772218389560,3.68537866,81.545,81.507,3.89259372]
[1772218390666,3.68537866,81.545,81.508,11.0437]
[1772218391971,3.68537866,81.545,81.49,3.50184913]
[1772218391972,3.68537866,81.545,81.511,11.0433]
[1772218392873,8.92994142,81.565,81.521,3.87819564]
[1772218393071,15.05647205,81.589,81.492,22.0917]
[1772218393072,8.92994142,81.577,81.531,3.87819564]
[1772218393273,3.79145886,81.586,81.541,3.87819564]
[1772218394170,3.50184913,81.56,81.521,3.88120662]
[1772218394366,7.29330799,81.56,81.521,3.88120662]
[1772218394776,3.79145886,81.56,81.522,11.0417]
[1772218394976,3.50184913,81.57,81.523,3.88120662]
[1772218395173,7.29330799,81.57,81.523,3.88120662]
[1772218395370,3.79145886,81.569,81.523,3.88120662]
[1772218395973,3.79145886,81.569,81.51,3.50184913]
[1772218395974,3.79145886,81.555,81.51,3.86100981]
[1772218396478,3.79145886,81.555,81.511,3.86100981]
[1772218397174,3.79145886,81.555,81.518,11.0422]